[Event "Titled Tuesday Blitz July 18 Early 2023"]
[White "Gorovets, Andrey"]
[Black "Frolyanov, Dmitry"]
[WhiteFideId "13504037"]
[BlackFideId "4151976"]
[WhiteElo "2831"]
[BlackElo "2621"]
[Result "0-1"]
[Round "11"]
[TimeControl "180+2"]
[Date "2023.07.18"]
[WhiteClock "0:00:00"]
[BlackClock "0:00:20"]
[Board "28"]

1. Nf3 {[%clk 0:02:58]}  d5 {[%clk 0:02:59]} 2. d4 {[%clk 0:02:58]}  Nf6 {[%clk 0:02:59]} 3. c4 {[%clk 0:02:59]}  e6 {[%clk 0:02:58]} 4. g3 {[%clk 0:02:59]}  dxc4 {[%clk 0:02:59]} 5. Bg2 {[%clk 0:02:59]}  Nc6 {[%clk 0:02:59]} 6. O-O {[%clk 0:02:57]}  Rb8 {[%clk 0:02:59]} 7. e3 {[%clk 0:02:54]}  b5 {[%clk 0:02:59]} 8. b3 {[%clk 0:02:55]}  cxb3 {[%clk 0:02:58]} 9. axb3 {[%clk 0:02:56]}  Bb7 {[%clk 0:02:57]} 10. Bb2 {[%clk 0:02:54]}  Be7 {[%clk 0:02:54]} 11. Qe2 {[%clk 0:02:54]}  a6 {[%clk 0:02:53]} 12. Rc1 {[%clk 0:02:52]}  O-O {[%clk 0:02:51]} 13. Ne1 {[%clk 0:02:51]}  Nb4 {[%clk 0:02:45]} 14. Bxb7 {[%clk 0:02:51]}  Rxb7 {[%clk 0:02:46]} 15. Na3 {[%clk 0:02:50]}  Qd5 {[%clk 0:02:42]} 16. Nac2 {[%clk 0:02:39]}  Qxb3 {[%clk 0:02:04]} 17. Nxb4 {[%clk 0:02:39]}  Bxb4 {[%clk 0:02:04]} 18. Nd3 {[%clk 0:02:33]}  a5 {[%clk 0:01:46]} 19. Rab1 {[%clk 0:02:29]}  Qd5 {[%clk 0:01:44]} 20. Nxb4 {[%clk 0:02:23]}  axb4 {[%clk 0:01:44]} 21. Rc5 {[%clk 0:02:18]}  Qe4 {[%clk 0:01:37]} 22. Rbc1 {[%clk 0:02:09]}  Nd5 {[%clk 0:01:37]} 23. Re1 {[%clk 0:02:06]}  Ra7 {[%clk 0:01:24]} 24. f3 {[%clk 0:02:03]}  Qg6 {[%clk 0:01:24]} 25. e4 {[%clk 0:01:52]}  Nf4 {[%clk 0:01:19]} 26. Qd2 {[%clk 0:01:50]}  Ra2 {[%clk 0:01:10]} 27. Ra1 {[%clk 0:01:41]}  Rxa1+ {[%clk 0:01:02]} 28. Bxa1 {[%clk 0:01:42]}  Ra8 {[%clk 0:00:43]} 29. Bb2 {[%clk 0:01:39]}  Ra2 {[%clk 0:00:35]} 30. Rxc7 {[%clk 0:01:39]}  h5 {[%clk 0:00:32]} 31. Qxb4 {[%clk 0:00:20]}  Qg5 {[%clk 0:00:31]} 32. Rc8+ {[%clk 0:00:08]}  Kh7 {[%clk 0:00:31]} 33. Qb3 {[%clk 0:00:03]}  Nh3+ {[%clk 0:00:29]} 34. Kf1 {[%clk 0:00:01]}  Qd2 {[%clk 0:00:30]} 35. Rc2 {[%clk 0:00:01]}  Qd1+ {[%clk 0:00:28]} 36. Kg2 {[%clk 0:00:01]}  Ng5 {[%clk 0:00:21]} 37. Rf2 {[%clk 0:00:00]}  Qxb3 {[%clk 0:00:20]} 0-1


[Site "https://www.chess.com"]

[Event "Titled Tuesday Blitz July 18 Early 2023"]
[White "Moskvin, Anatoly"]
[Black "Weetik, Vjacheslav"]
[WhiteFideId "24199990"]
[BlackFideId "4153472"]
[WhiteElo "2584"]
[BlackElo "2758"]
[Result "1-0"]
[Round "11"]
[TimeControl "180+2"]
[Date "2023.07.18"]
[WhiteClock "0:00:04"]
[BlackClock "0:00:00"]
[Board "30"]

1. e4 {[%clk 0:03:00]}  c6 {[%clk 0:03:00]} 2. c4 {[%clk 0:03:00]}  e5 {[%clk 0:03:00]} 3. Nc3 {[%clk 0:03:00]}  d6 {[%clk 0:02:59]} 4. g3 {[%clk 0:03:01]}  g6 {[%clk 0:02:58]} 5. Bg2 {[%clk 0:03:01]}  Bg7 {[%clk 0:02:59]} 6. Nge2 {[%clk 0:03:02]}  Nd7 {[%clk 0:02:57]} 7. O-O {[%clk 0:03:00]}  Ngf6 {[%clk 0:02:55]} 8. h3 {[%clk 0:03:00]}  O-O {[%clk 0:02:54]} 9. d3 {[%clk 0:03:00]}  a6 {[%clk 0:02:50]} 10. f4 {[%clk 0:02:57]}  b5 {[%clk 0:02:50]} 11. Be3 {[%clk 0:02:45]}  exf4 {[%clk 0:02:42]} 12. gxf4 {[%clk 0:02:42]}  Nh5 {[%clk 0:02:42]} 13. Qd2 {[%clk 0:02:29]}  Bb7 {[%clk 0:02:37]} 14. Rae1 {[%clk 0:02:19]}  Qc7 {[%clk 0:02:11]} 15. b3 {[%clk 0:01:52]}  b4 {[%clk 0:01:52]} 16. Nd1 {[%clk 0:01:47]}  f5 {[%clk 0:01:43]} 17. exf5 {[%clk 0:01:29]}  Rxf5 {[%clk 0:01:41]} 18. Qxb4 {[%clk 0:01:29]}  Re8 {[%clk 0:01:35]} 19. Qd2 {[%clk 0:01:16]}  c5 {[%clk 0:01:31]} 20. Bxb7 {[%clk 0:00:59]}  Qxb7 {[%clk 0:01:32]} 21. d4 {[%clk 0:01:00]}  Ndf6 {[%clk 0:01:28]} 22. d5 {[%clk 0:00:55]}  Ne4 {[%clk 0:01:23]} 23. Qd3 {[%clk 0:00:55]}  Qd7 {[%clk 0:01:15]} 24. Kg2 {[%clk 0:00:26]}  Nhf6 {[%clk 0:01:04]} 25. Ndc3 {[%clk 0:00:21]}  Rh5 {[%clk 0:01:03]} 26. Bc1 {[%clk 0:00:20]}  h6 {[%clk 0:00:46]} 27. Nxe4 {[%clk 0:00:13]}  Nxe4 {[%clk 0:00:47]} 28. Rh1 {[%clk 0:00:09]}  Kh7 {[%clk 0:00:33]} 29. Ng3 {[%clk 0:00:09]}  Nxg3 {[%clk 0:00:33]} 30. Qxg3 {[%clk 0:00:10]}  Bf6 {[%clk 0:00:22]} 31. Rxe8 {[%clk 0:00:09]}  Qxe8 {[%clk 0:00:23]} 32. Re1 {[%clk 0:00:09]}  Qf7 {[%clk 0:00:23]} 33. Re6 {[%clk 0:00:09]}  Rf5 {[%clk 0:00:14]} 34. Rxd6 {[%clk 0:00:05]}  Bd4 {[%clk 0:00:08]} 35. Re6 {[%clk 0:00:05]}  a5 {[%clk 0:00:07]} 36. Be3 {[%clk 0:00:04]}  Bg7 {[%clk 0:00:06]} 37. Qh4 {[%clk 0:00:04]}  a4 {[%clk 0:00:07]} 38. Re7 {[%clk 0:00:04]}  Qf8 {[%clk 0:00:07]} 39. Re6 {[%clk 0:00:05]}  Bf6 {[%clk 0:00:07]} 40. Qg3 {[%clk 0:00:04]}  axb3 {[%clk 0:00:07]} 41. axb3 {[%clk 0:00:05]}  Qa8 {[%clk 0:00:07]} 42. Qf2 {[%clk 0:00:04]}  Qa3 {[%clk 0:00:07]} 43. Bxc5 {[%clk 0:00:05]}  Qxb3 {[%clk 0:00:07]} 44. Be7 {[%clk 0:00:04]}  Bg7 {[%clk 0:00:07]} 45. d6 {[%clk 0:00:04]}  Qxc4 {[%clk 0:00:07]} 46. Qe2 {[%clk 0:00:02]}  Rxf4 {[%clk 0:00:05]} 47. Qxc4 {[%clk 0:00:02]}  Rxc4 {[%clk 0:00:05]} 48. d7 {[%clk 0:00:03]}  Rc2+ {[%clk 0:00:04]} 49. Kf3 {[%clk 0:00:03]}  Rc3+ {[%clk 0:00:04]} 50. Re3 {[%clk 0:00:04]}  Rc7 {[%clk 0:00:00]} 51. d8=Q {[%clk 0:00:04]} 1-0


[Site "https://www.chess.com"]

[Event "Titled Tuesday Blitz July 18 Early 2023"]
[White "Hajiyev, Kanan"]
[Black "Dehtiarov, Roman"]
[WhiteFideId "13404148"]
[BlackFideId "14186640"]
[WhiteElo "2578"]
[BlackElo "2732"]
[Result "0-1"]
[Round "11"]
[TimeControl "180+2"]
[Date "2023.07.18"]
[WhiteClock "0:00:33"]
[BlackClock "0:00:12"]
[Board "32"]

1. d4 {[%clk 0:02:41]}  Nf6 {[%clk 0:02:58]} 2. Nf3 {[%clk 0:02:40]}  e6 {[%clk 0:02:46]} 3. c4 {[%clk 0:02:40]}  b6 {[%clk 0:02:45]} 4. g3 {[%clk 0:02:38]}  Ba6 {[%clk 0:02:46]} 5. Qc2 {[%clk 0:02:37]}  c5 {[%clk 0:02:46]} 6. Bg2 {[%clk 0:02:37]}  Bb7 {[%clk 0:02:45]} 7. O-O {[%clk 0:02:27]}  cxd4 {[%clk 0:02:45]} 8. Nxd4 {[%clk 0:02:28]}  Bxg2 {[%clk 0:02:45]} 9. Kxg2 {[%clk 0:02:28]}  Qc8 {[%clk 0:02:46]} 10. Rd1 {[%clk 0:02:28]}  Be7 {[%clk 0:02:45]} 11. b3 {[%clk 0:02:28]}  Qb7+ {[%clk 0:02:43]} 12. f3 {[%clk 0:02:23]}  O-O {[%clk 0:02:42]} 13. Ba3 {[%clk 0:02:22]}  d5 {[%clk 0:02:41]} 14. Bxe7 {[%clk 0:02:20]}  Qxe7 {[%clk 0:02:42]} 15. cxd5 {[%clk 0:02:14]}  Nxd5 {[%clk 0:02:42]} 16. Qd2 {[%clk 0:02:01]}  Rd8 {[%clk 0:02:32]} 17. Nc3 {[%clk 0:01:56]}  h6 {[%clk 0:01:37]} 18. e4 {[%clk 0:01:32]}  Nxc3 {[%clk 0:01:35]} 19. Qxc3 {[%clk 0:01:33]}  Na6 {[%clk 0:01:03]} 20. Nc6 {[%clk 0:01:29]}  Qc7 {[%clk 0:01:02]} 21. Rxd8+ {[%clk 0:01:19]}  Rxd8 {[%clk 0:01:02]} 22. Rc1 {[%clk 0:01:20]}  Rd6 {[%clk 0:00:53]} 23. b4 {[%clk 0:01:14]}  Qd7 {[%clk 0:00:47]} 24. Rc2 {[%clk 0:01:11]}  f6 {[%clk 0:00:40]} 25. e5 {[%clk 0:00:59]}  Rd3 {[%clk 0:00:37]} 26. Qc4 {[%clk 0:01:00]}  Rd2+ {[%clk 0:00:04]} 27. Kh3 {[%clk 0:01:00]}  Rxc2 {[%clk 0:00:04]} 28. Qxc2 {[%clk 0:01:00]}  fxe5 {[%clk 0:00:04]} 29. Nxe5 {[%clk 0:00:55]}  Qc7 {[%clk 0:00:04]} 30. Qe4 {[%clk 0:00:42]}  Nxb4 {[%clk 0:00:03]} 31. Ng6 {[%clk 0:00:37]}  Qf7 {[%clk 0:00:01]} 32. Nf4 {[%clk 0:00:34]}  Qf5+ {[%clk 0:00:01]} 33. g4 {[%clk 0:00:26]}  Qxe4 {[%clk 0:00:01]} 34. fxe4 {[%clk 0:00:27]}  Kf7 {[%clk 0:00:02]} 35. a3 {[%clk 0:00:27]}  Nc2 {[%clk 0:00:02]} 36. a4 {[%clk 0:00:27]}  Ne3 {[%clk 0:00:02]} 37. Nd3 {[%clk 0:00:28]}  Nc4 {[%clk 0:00:02]} 38. Nb4 {[%clk 0:00:26]}  Ne5 {[%clk 0:00:02]} 39. Kg3 {[%clk 0:00:25]}  Ke7 {[%clk 0:00:02]} 40. Kf4 {[%clk 0:00:25]}  Kd6 {[%clk 0:00:03]} 41. h4 {[%clk 0:00:24]}  a5 {[%clk 0:00:01]} 42. Na2 {[%clk 0:00:25]}  Nd3+ {[%clk 0:00:02]} 43. Ke3 {[%clk 0:00:25]}  Nc5 {[%clk 0:00:02]} 44. g5 {[%clk 0:00:26]}  hxg5 {[%clk 0:00:02]} 45. hxg5 {[%clk 0:00:27]}  e5 {[%clk 0:00:03]} 46. Nc3 {[%clk 0:00:27]}  Kc6 {[%clk 0:00:03]} 47. g6 {[%clk 0:00:27]}  Kd6 {[%clk 0:00:04]} 48. Nd5 {[%clk 0:00:27]}  Nxa4 {[%clk 0:00:03]} 49. Kd3 {[%clk 0:00:27]}  Nc5+ {[%clk 0:00:03]} 50. Ke3 {[%clk 0:00:28]}  b5 {[%clk 0:00:04]} 51. Nc3 {[%clk 0:00:28]}  b4 {[%clk 0:00:04]} 52. Nb5+ {[%clk 0:00:29]}  Ke6 {[%clk 0:00:04]} 53. Nc7+ {[%clk 0:00:29]}  Kf6 {[%clk 0:00:05]} 54. Nd5+ {[%clk 0:00:30]}  Kxg6 {[%clk 0:00:05]} 55. Nb6 {[%clk 0:00:30]}  b3 {[%clk 0:00:05]} 56. Nc4 {[%clk 0:00:30]}  a4 {[%clk 0:00:05]} 57. Nxe5+ {[%clk 0:00:31]}  Kh7 {[%clk 0:00:06]} 58. Nc4 {[%clk 0:00:31]}  g5 {[%clk 0:00:05]} 59. Kd4 {[%clk 0:00:32]}  g4 {[%clk 0:00:04]} 60. Kxc5 {[%clk 0:00:27]}  g3 {[%clk 0:00:04]} 61. e5 {[%clk 0:00:26]}  g2 {[%clk 0:00:04]} 62. e6 {[%clk 0:00:26]}  g1=Q+ {[%clk 0:00:05]} 63. Kd6 {[%clk 0:00:27]}  Qd4+ {[%clk 0:00:05]} 64. Ke7 {[%clk 0:00:26]}  Qxc4 {[%clk 0:00:06]} 65. Kf8 {[%clk 0:00:27]}  Qf4+ {[%clk 0:00:05]} 66. Ke7 {[%clk 0:00:27]}  Kg7 {[%clk 0:00:06]} 67. Kd7 {[%clk 0:00:26]}  b2 {[%clk 0:00:06]} 68. e7 {[%clk 0:00:27]}  Qe5 {[%clk 0:00:07]} 69. e8=Q {[%clk 0:00:27]}  Qxe8+ {[%clk 0:00:08]} 70. Kxe8 {[%clk 0:00:28]}  b1=Q {[%clk 0:00:08]} 71. Ke7 {[%clk 0:00:28]}  a3 {[%clk 0:00:09]} 72. Kd6 {[%clk 0:00:29]}  a2 {[%clk 0:00:10]} 73. Kd7 {[%clk 0:00:30]}  a1=Q {[%clk 0:00:10]} 74. Ke6 {[%clk 0:00:30]}  Qe4+ {[%clk 0:00:10]} 75. Kd6 {[%clk 0:00:31]}  Qad4+ {[%clk 0:00:11]} 76. Kc7 {[%clk 0:00:31]}  Qc2+ {[%clk 0:00:11]} 77. Kb8 {[%clk 0:00:32]}  Qdb2+ {[%clk 0:00:11]} 78. Ka7 {[%clk 0:00:33]}  Qa4# {[%clk 0:00:12]} 0-1


[Site "https://www.chess.com"]

[Event "Titled Tuesday Blitz July 18 Early 2023"]
[White "Jimenez Almeida, Luis David"]
[Black "Ashraf, Artin"]
[WhiteFideId "22242244"]
[BlackFideId "22514805"]
[WhiteElo "2563"]
[BlackElo "2729"]
[Result "1/2-1/2"]
[Round "11"]
[TimeControl "180+2"]
[Date "2023.07.18"]
[WhiteClock "0:00:06"]
[BlackClock "0:00:58"]
[Board "33"]

1. e4 {[%clk 0:03:00]}  c5 {[%clk 0:02:59]} 2. Nc3 {[%clk 0:03:00]}  d6 {[%clk 0:02:59]} 3. Nge2 {[%clk 0:03:00]}  Nf6 {[%clk 0:02:59]} 4. d4 {[%clk 0:02:57]}  cxd4 {[%clk 0:02:59]} 5. Nxd4 {[%clk 0:02:58]}  a6 {[%clk 0:02:59]} 6. Bg5 {[%clk 0:02:55]}  Nbd7 {[%clk 0:02:53]} 7. f4 {[%clk 0:02:55]}  h6 {[%clk 0:02:37]} 8. Bh4 {[%clk 0:02:53]}  g5 {[%clk 0:02:36]} 9. fxg5 {[%clk 0:02:53]}  hxg5 {[%clk 0:02:37]} 10. Bxg5 {[%clk 0:02:53]}  Qb6 {[%clk 0:02:35]} 11. Qd2 {[%clk 0:02:43]}  Qxb2 {[%clk 0:02:33]} 12. Rb1 {[%clk 0:02:35]}  Qa3 {[%clk 0:02:33]} 13. Bc4 {[%clk 0:02:27]}  Qc5 {[%clk 0:02:31]} 14. Bb3 {[%clk 0:02:27]}  Rg8 {[%clk 0:02:16]} 15. Be3 {[%clk 0:02:24]}  Qe5 {[%clk 0:02:10]} 16. Nf3 {[%clk 0:02:18]}  Qh5 {[%clk 0:02:10]} 17. Nd5 {[%clk 0:02:12]}  Nxe4 {[%clk 0:02:09]} 18. Qa5 {[%clk 0:02:05]}  Ndc5 {[%clk 0:02:03]} 19. Ba4+ {[%clk 0:01:40]}  b5 {[%clk 0:02:00]} 20. Bxb5+ {[%clk 0:01:38]}  axb5 {[%clk 0:02:01]} 21. Qxa8 {[%clk 0:01:38]}  Qf5 {[%clk 0:01:41]} 22. O-O {[%clk 0:01:20]}  Qg4 {[%clk 0:01:39]} 23. g3 {[%clk 0:01:10]}  Nxg3 {[%clk 0:01:37]} 24. Nc7+ {[%clk 0:00:49]}  Kd7 {[%clk 0:01:32]} 25. Ne5+ {[%clk 0:00:49]}  dxe5 {[%clk 0:01:22]} 26. Qd5+ {[%clk 0:00:48]}  Kxc7 {[%clk 0:01:22]} 27. Qxc5+ {[%clk 0:00:47]}  Kd8 {[%clk 0:01:03]} 28. Rbd1+ {[%clk 0:00:43]}  Ke8 {[%clk 0:01:01]} 29. Qxb5+ {[%clk 0:00:13]}  Bd7 {[%clk 0:00:57]} 30. Qb8+ {[%clk 0:00:13]}  Bc8 {[%clk 0:00:57]} 31. Qb5+ {[%clk 0:00:08]}  Bd7 {[%clk 0:00:57]} 32. Qb8+ {[%clk 0:00:07]}  Bc8 {[%clk 0:00:58]} 33. Qb5+ {[%clk 0:00:06]} 1/2-1/2


[Site "https://www.chess.com"]

[Event "Titled Tuesday Blitz July 18 Early 2023"]
[White "Vokhidov, Shamsiddin"]
[Black "Skliarov, Viktor"]
[WhiteFideId "14204223"]
[BlackFideId "14106736"]
[WhiteElo "2894"]
[BlackElo "2601"]
[Result "1/2-1/2"]
[Round "11"]
[TimeControl "180+2"]
[Date "2023.07.18"]
[WhiteClock "0:00:44"]
[BlackClock "0:00:04"]
[Board "36"]

1. e4 {[%clk 0:03:00]}  c5 {[%clk 0:02:58]} 2. Nf3 {[%clk 0:03:01]}  Nc6 {[%clk 0:02:59]} 3. Nc3 {[%clk 0:03:01]}  Nf6 {[%clk 0:02:59]} 4. Bb5 {[%clk 0:03:01]}  Nd4 {[%clk 0:03:00]} 5. e5 {[%clk 0:02:59]}  Nxb5 {[%clk 0:03:00]} 6. Nxb5 {[%clk 0:03:00]}  Nd5 {[%clk 0:03:00]} 7. O-O {[%clk 0:03:00]}  a6 {[%clk 0:03:00]} 8. c4 {[%clk 0:02:59]}  Nc7 {[%clk 0:02:56]} 9. Nc3 {[%clk 0:02:49]}  g6 {[%clk 0:02:54]} 10. d4 {[%clk 0:02:45]}  cxd4 {[%clk 0:02:53]} 11. Qxd4 {[%clk 0:02:46]}  Ne6 {[%clk 0:02:53]} 12. Qh4 {[%clk 0:02:45]}  Bg7 {[%clk 0:02:48]} 13. Bh6 {[%clk 0:02:45]}  O-O {[%clk 0:02:33]} 14. Ne4 {[%clk 0:02:44]}  b6 {[%clk 0:02:14]} 15. Nfg5 {[%clk 0:02:37]}  Nxg5 {[%clk 0:02:13]} 16. Nxg5 {[%clk 0:02:37]}  f6 {[%clk 0:02:14]} 17. exf6 {[%clk 0:02:37]}  exf6 {[%clk 0:02:13]} 18. Bxg7 {[%clk 0:02:29]}  fxg5 {[%clk 0:02:13]} 19. Qd4 {[%clk 0:02:25]}  Rf7 {[%clk 0:01:59]} 20. Be5 {[%clk 0:02:24]}  Bb7 {[%clk 0:01:49]} 21. Rad1 {[%clk 0:02:22]}  Bc6 {[%clk 0:01:32]} 22. Rfe1 {[%clk 0:02:19]}  b5 {[%clk 0:01:30]} 23. Re3 {[%clk 0:02:16]}  Qf8 {[%clk 0:01:00]} 24. f3 {[%clk 0:02:15]}  Qb4 {[%clk 0:00:48]} 25. b3 {[%clk 0:02:04]}  bxc4 {[%clk 0:00:47]} 26. bxc4 {[%clk 0:02:05]}  Qa4 {[%clk 0:00:37]} 27. Rde1 {[%clk 0:02:04]}  Re8 {[%clk 0:00:17]} 28. Bd6 {[%clk 0:01:58]}  Re6 {[%clk 0:00:14]} 29. Rxe6 {[%clk 0:01:46]}  dxe6 {[%clk 0:00:15]} 30. Qb6 {[%clk 0:01:39]}  g4 {[%clk 0:00:12]} 31. Qd8+ {[%clk 0:01:02]}  Be8 {[%clk 0:00:12]} 32. Rxe6 {[%clk 0:01:02]}  Qd1+ {[%clk 0:00:12]} 33. Kf2 {[%clk 0:01:02]}  Rxf3+ {[%clk 0:00:08]} 34. gxf3 {[%clk 0:01:02]}  Qxf3+ {[%clk 0:00:08]} 35. Ke1 {[%clk 0:01:01]}  Qc3+ {[%clk 0:00:06]} 36. Kd1 {[%clk 0:00:58]}  Qd3+ {[%clk 0:00:04]} 37. Ke1 {[%clk 0:00:55]}  Qc3+ {[%clk 0:00:04]} 38. Kf1 {[%clk 0:00:53]}  Qf3+ {[%clk 0:00:04]} 39. Kg1 {[%clk 0:00:49]}  Qd1+ {[%clk 0:00:04]} 40. Kf2 {[%clk 0:00:45]}  Qf3+ {[%clk 0:00:04]} 41. Ke1 {[%clk 0:00:44]}  Qc3+ {[%clk 0:00:04]} 1/2-1/2


[Site "https://www.chess.com"]

[Event "Titled Tuesday Blitz July 18 Early 2023"]
[White "Wagh Suyog"]
[Black "Colas, Joshua"]
[WhiteFideId "25071688"]
[BlackFideId "2044447"]
[WhiteElo "2796"]
[BlackElo "2597"]
[Result "1-0"]
[Round "11"]
[TimeControl "180+2"]
[Date "2023.07.18"]
[WhiteClock "0:00:27"]
[BlackClock "0:00:00"]
[Board "38"]

1. d4 {[%clk 0:02:55]}  Nf6 {[%clk 0:02:58]} 2. c4 {[%clk 0:02:56]}  e6 {[%clk 0:02:56]} 3. g3 {[%clk 0:02:56]}  d5 {[%clk 0:02:48]} 4. Nf3 {[%clk 0:02:56]}  Be7 {[%clk 0:02:47]} 5. Bg2 {[%clk 0:02:57]}  O-O {[%clk 0:02:45]} 6. O-O {[%clk 0:02:57]}  dxc4 {[%clk 0:02:46]} 7. Qc2 {[%clk 0:02:56]}  a6 {[%clk 0:02:46]} 8. a4 {[%clk 0:02:55]}  Bd7 {[%clk 0:02:46]} 9. Qxc4 {[%clk 0:02:53]}  Bc6 {[%clk 0:02:44]} 10. Nc3 {[%clk 0:02:47]}  b5 {[%clk 0:02:44]} 11. Qd3 {[%clk 0:02:39]}  b4 {[%clk 0:02:22]} 12. Nb1 {[%clk 0:02:39]}  Nbd7 {[%clk 0:02:17]} 13. Bg5 {[%clk 0:02:35]}  h6 {[%clk 0:02:14]} 14. Bxf6 {[%clk 0:02:35]}  Nxf6 {[%clk 0:02:15]} 15. Nbd2 {[%clk 0:02:35]}  a5 {[%clk 0:02:08]} 16. Rfc1 {[%clk 0:02:34]}  Bb7 {[%clk 0:02:07]} 17. Ne5 {[%clk 0:02:32]}  Bxg2 {[%clk 0:02:02]} 18. Kxg2 {[%clk 0:02:33]}  Bd6 {[%clk 0:01:27]} 19. Nc6 {[%clk 0:02:31]}  Qd7 {[%clk 0:01:26]} 20. f4 {[%clk 0:02:23]}  Rfc8 {[%clk 0:01:17]} 21. Nf3 {[%clk 0:02:22]}  Nd5 {[%clk 0:01:16]} 22. e4 {[%clk 0:02:09]}  Nb6 {[%clk 0:01:13]} 23. Qb5 {[%clk 0:02:05]}  f6 {[%clk 0:00:57]} 24. h4 {[%clk 0:02:04]}  f5 {[%clk 0:00:48]} 25. exf5 {[%clk 0:01:50]}  exf5 {[%clk 0:00:46]} 26. Nxa5 {[%clk 0:01:49]}  Qxb5 {[%clk 0:00:35]} 27. axb5 {[%clk 0:01:50]}  Re8 {[%clk 0:00:28]} 28. Ne5 {[%clk 0:01:49]}  Nd5 {[%clk 0:00:26]} 29. Nac6 {[%clk 0:01:44]}  b3 {[%clk 0:00:24]} 30. Kf3 {[%clk 0:01:42]}  h5 {[%clk 0:00:21]} 31. Rd1 {[%clk 0:01:37]}  Ra2 {[%clk 0:00:21]} 32. Rab1 {[%clk 0:01:32]}  Rea8 {[%clk 0:00:19]} 33. Rd3 {[%clk 0:01:31]}  Nf6 {[%clk 0:00:15]} 34. Rxb3 {[%clk 0:01:29]}  Ne4 {[%clk 0:00:16]} 35. Rd3 {[%clk 0:01:23]}  R8a4 {[%clk 0:00:13]} 36. Ke2 {[%clk 0:01:16]}  Ra1 {[%clk 0:00:12]} 37. Rxa1 {[%clk 0:01:15]}  Rxa1 {[%clk 0:00:13]} 38. Nc4 {[%clk 0:01:14]}  Rg1 {[%clk 0:00:12]} 39. d5 {[%clk 0:01:08]}  Rg2+ {[%clk 0:00:11]} 40. Kf1 {[%clk 0:01:07]}  Rf2+ {[%clk 0:00:11]} 41. Ke1 {[%clk 0:01:07]}  Rg2 {[%clk 0:00:11]} 42. Nxd6 {[%clk 0:01:01]}  Nxd6 {[%clk 0:00:11]} 43. Nd4 {[%clk 0:01:01]}  Rxb2 {[%clk 0:00:10]} 44. Rc3 {[%clk 0:00:59]}  Nxb5 {[%clk 0:00:10]} 45. Rc4 {[%clk 0:00:46]}  Nxd4 {[%clk 0:00:10]} 46. Rxd4 {[%clk 0:00:47]}  Kf7 {[%clk 0:00:10]} 47. Rc4 {[%clk 0:00:47]}  Rb7 {[%clk 0:00:07]} 48. Rc6 {[%clk 0:00:46]}  Ke7 {[%clk 0:00:05]} 49. Re6+ {[%clk 0:00:44]}  Kf7 {[%clk 0:00:05]} 50. Rc6 {[%clk 0:00:44]}  Ke7 {[%clk 0:00:06]} 51. Ke2 {[%clk 0:00:45]}  Rb2+ {[%clk 0:00:04]} 52. Kd3 {[%clk 0:00:41]}  Rb3+ {[%clk 0:00:04]} 53. Kd4 {[%clk 0:00:41]}  Rxg3 {[%clk 0:00:05]} 54. Rxc7+ {[%clk 0:00:40]}  Kd6 {[%clk 0:00:05]} 55. Rc6+ {[%clk 0:00:40]}  Kd7 {[%clk 0:00:05]} 56. Ke5 {[%clk 0:00:41]}  Rg4 {[%clk 0:00:03]} 57. Ra6 {[%clk 0:00:39]}  Rxh4 {[%clk 0:00:03]} 58. Ra7+ {[%clk 0:00:39]}  Kc8 {[%clk 0:00:03]} 59. Rxg7 {[%clk 0:00:28]}  Rg4 {[%clk 0:00:00]} 60. Rh7 {[%clk 0:00:27]} 1-0


[Site "https://www.chess.com"]

[Event "Titled Tuesday Blitz July 18 Early 2023"]
[White "Pinero Rodriguez, Carlos Jose"]
[Black "Kosteniuk, Alexandra"]
[WhiteFideId "3901726"]
[BlackFideId "4128125"]
[WhiteElo "2596"]
[BlackElo "2788"]
[Result "0-1"]
[Round "11"]
[TimeControl "180+2"]
[Date "2023.07.18"]
[WhiteClock "0:01:52"]
[BlackClock "0:02:31"]
[Board "39"]

1. b3 {[%clk 0:03:00]}  f5 {[%clk 0:02:59]} 2. Bb2 {[%clk 0:03:00]}  Nf6 {[%clk 0:02:59]} 3. e3 {[%clk 0:03:00]}  g6 {[%clk 0:02:59]} 4. c4 {[%clk 0:02:59]}  Bg7 {[%clk 0:02:59]} 5. Nf3 {[%clk 0:02:59]}  d6 {[%clk 0:02:59]} 6. d4 {[%clk 0:03:00]}  a5 {[%clk 0:02:58]} 7. a3 {[%clk 0:02:59]}  O-O {[%clk 0:02:55]} 8. Nbd2 {[%clk 0:02:51]}  Nbd7 {[%clk 0:02:54]} 9. Be2 {[%clk 0:02:47]}  Qe8 {[%clk 0:02:54]} 10. d5 {[%clk 0:02:47]}  Nc5 {[%clk 0:02:50]} 11. Qc2 {[%clk 0:02:45]}  e5 {[%clk 0:02:48]} 12. dxe6 {[%clk 0:02:45]}  Bxe6 {[%clk 0:02:46]} 13. Nd4 {[%clk 0:02:45]}  Bd7 {[%clk 0:02:45]} 14. Bf3 {[%clk 0:02:45]}  Nce4 {[%clk 0:02:43]} 15. Nxe4 {[%clk 0:02:44]}  fxe4 {[%clk 0:02:42]} 16. Be2 {[%clk 0:02:42]}  Ng4 {[%clk 0:02:40]} 17. Bxg4 {[%clk 0:02:31]}  Bxg4 {[%clk 0:02:41]} 18. Nb5 {[%clk 0:02:29]}  Qf7 {[%clk 0:02:35]} 19. Bxg7 {[%clk 0:02:26]}  Qxg7 {[%clk 0:02:34]} 20. O-O {[%clk 0:02:21]}  Rae8 {[%clk 0:02:33]} 21. Qc3 {[%clk 0:02:19]}  Re5 {[%clk 0:02:32]} 22. h3 {[%clk 0:02:17]}  Bf3 {[%clk 0:02:32]} 23. gxf3 {[%clk 0:02:15]}  Rxf3 {[%clk 0:02:31]} 24. Nd4 {[%clk 0:01:56]}  Rg5+ {[%clk 0:02:31]} 25. Kh2 {[%clk 0:01:52]}  Rxh3+ {[%clk 0:02:31]} 0-1


[Site "https://www.chess.com"]

[Event "Titled Tuesday Blitz July 18 Early 2023"]
[White "Mikhailovsky, Vladimir"]
[Black "Fonseca Manrique, Enrique"]
[WhiteFideId "34105414"]
[BlackFideId "5114330"]
[WhiteElo "2726"]
[BlackElo "2587"]
[Result "1-0"]
[Round "11"]
[TimeControl "180+2"]
[Date "2023.07.18"]
[WhiteClock "0:01:54"]
[BlackClock "0:01:50"]
[Board "42"]

1. e4 {[%clk 0:03:00]}  c5 {[%clk 0:02:57]} 2. c3 {[%clk 0:03:00]}  d5 {[%clk 0:02:58]} 3. exd5 {[%clk 0:03:00]}  Qxd5 {[%clk 0:02:58]} 4. d4 {[%clk 0:03:00]}  Nf6 {[%clk 0:02:58]} 5. Nf3 {[%clk 0:03:01]}  e6 {[%clk 0:02:57]} 6. Na3 {[%clk 0:03:01]}  a6 {[%clk 0:02:57]} 7. Nc4 {[%clk 0:03:01]}  Nbd7 {[%clk 0:02:57]} 8. a4 {[%clk 0:02:53]}  b5 {[%clk 0:02:44]} 9. Ne3 {[%clk 0:02:49]}  Qc6 {[%clk 0:02:43]} 10. axb5 {[%clk 0:02:50]}  axb5 {[%clk 0:02:43]} 11. Bxb5 {[%clk 0:02:47]}  Qb7 {[%clk 0:02:40]} 12. Rxa8 {[%clk 0:02:45]}  Qxa8 {[%clk 0:02:41]} 13. O-O {[%clk 0:02:37]}  Be7 {[%clk 0:02:28]} 14. dxc5 {[%clk 0:02:29]}  Bxc5 {[%clk 0:02:18]} 15. Ne5 {[%clk 0:02:16]}  O-O {[%clk 0:01:50]} 16. Bxd7 {[%clk 0:01:54]} 1-0


[Site "https://www.chess.com"]